Cogmind - Beta 14 @@@ ROGUE MODE // 2024.10.06 @ 10:51:19 Player: Cmdr.Laserstrahl Result: Destroyed by Y-45 Defender with Heavy Assault Rifle Performance ------------- Evolutions (1) 500 Regions Visited (2) 400 Robots Destroyed (55) 275 Value Destroyed (1472) 1472 Prototype IDs (4) 80 Alien Tech Used (0) 0 Bonus (52) 52 TOTAL SCORE: 2779 Bonus ------- High Alert Combat Kills 52 Cogmind --------- Core Integrity 0/400 Matter 285/300 Energy 80/100 System Corruption 2% Temperature Cool (9) Movement Walking (330) Ox3 Location -9/Materials Parts ------- > --- POWER (1) -------- (None) > --- PROPULSION (2) --- Improved Aluminum Leg > --- UTILITY (4) ------ High-capacity Storage Unit Signal Interpreter > --- WEAPON (2) ------- Hammer Hammer > --- INVENTORY (20) --- Ion Engine Light Ion Engine Heat Sink Cooling System Medium Battery (150) Large Matter Pod (150) Improved Terrain Scanner Terrain Scan Processor Improved Targeting Computer Hacking Suite Small Laser Heavy Assault Rifle Mini Grenade Launcher Mini Grenade Launcher Peak State ------------ > --- POWER ------------ Light Nuclear Core > --- PROPULSION ------- Wheel Compact Wheel > --- UTILITY ---------- Cooling System High-capacity Storage Unit Seismic Detector Light Armor Plating > --- WEAPON ----------- Small Laser Light EM Pulse Cannon > --- INVENTORY -------- Ion Engine Improved Aluminum Leg Improved Aluminum Leg Improved Aluminum Leg Wheel Heat Sink Cooling System Large Matter Pod Sensor Array Improved Terrain Scanner Terrain Scan Processor Targeting Computer Improved Targeting Computer Shield Generator Hacking Suite Small Laser Mini Grenade Launcher Hammer Hammer [Rating: 16] Favorites ----------- Power Ion Engine Engine Ion Engine Power Core Light Nuclear Core Propulsion Wheel Treads Light Treads Leg Improved Aluminum Leg Wheel Wheel Utility Seismic Detector Device Seismic Detector Storage High-capacity Storage Unit Processor Signal Interpreter Protection Light Armor Plating Weapon Small Laser Energy Gun Small Laser Energy Cannon Light EM Pulse Cannon Ballistic Gun Light Assault Rifle Ballistic Cannon Light Cannon Launcher Mini Grenade Launcher Impact Weapon Hammer Build | -11 -10 -9 ------- Run | Yrd Mat Mat Slots Evolved 2 | . . 2 Power . | . . . Propulsion . | . . . Utility 2 | . . 2 Weapon . | . . . Parts Attached 60 | 11 14 35 Power 9 | 2 2 5 Engine 8 | 2 2 4 Core 1 | . . 1 Reactor . | . . . Propulsion 19 | 4 6 9 Treads 2 | 2 . . Leg 3 | . . 3 Wheel 14 | 2 6 6 Hover . | . . . Flight . | . . . Utility 13 | 2 3 8 Device 8 | 1 3 4 Storage 2 | 1 . 1 Processor 1 | . . 1 Hackware . | . . . Protection 2 | . . 2 Artifact . | . . . Weapon 19 | 3 3 13 Energy Gun 8 | 2 3 3 Energy Cannon 1 | . . 1 Ballistic Gun 3 | 1 . 2 Ballistic Cannon 2 | . . 2 Launcher 1 | . . 1 Special Weapon . | . . . Impact Weapon 4 | . . 4 Slashing Weapon . | . . . Piercing Weapon . | . . . Special Melee Weapon . | . . . Unidentified Prototypes . | . . . Parts Lost 20 | . 4 16 Power 4 | . 1 3 Propulsion 6 | . 1 5 Utility 5 | . 1 4 Weapon 5 | . 1 4 Highest Loss Streak 6 | . 3 6 To Critical Strikes . | . . . Average Slot Usage (%) 93 | . 97 92 Engine 9 | . 14 7 Core 2 | . . 3 Leg 1 | . . 1 Wheel 19 | . 27 16 Device 18 | . 12 20 Storage 12 | . 14 11 Processor 2 | . . 2 Protection 4 | . . 6 Energy Gun 14 | . 20 11 Ballistic Gun 2 | . 7 1 Ballistic Cannon 1 | . . 2 Impact Weapon 3 | . . 4 Peak Build Rating 16 | 8 9 16 Average Rating 11 | 4 8 12 On Entrance 5 | . 8 9 Naked Turns . | . . . Heaviest Build 57 | 11 17 57 Greatest Support 40 | 40 26 26 Greatest Overweight (x) 5 | 2 1 5 Average Overweight (x) 1 | . . 2 Largest Inventory Capacity 20 | 8 8 20 Average Capacity 15 | 6 8 18 Most Carried 20 | 8 8 20 Average Carried 13 | 5 7 15 Final Capacity 20 | 8 8 20 Final Carried 14 | 8 8 14 Class Distribution -------------------- 51% | Mutant 48% | Scavenger-Mutant Dominant Class ---------------- Mutant | -10/Materials Scavenger-Mutant | -9/Materials Resources | -11 -10 -9 ----------- Run | Yrd Mat Mat Matter Collected 1257 | 294 222 741 Remotely . | . . . Salvage Created 2078 | 119 488 1471 Parts 118 | 7 30 81 Haulers Intercepted . | . . . Recyclers Shooed 4 | . 3 1 Parts Field Recycled . | . . . Retrieved Matter . | . . . Parts Self-Destructed . | . . . Prevented . | . . . Kills | -11 -10 -9 ------- Run | Yrd Mat Mat Combat Hostiles Destroyed 34 | . 6 28 Melee 5 | . . 5 Guns 16 | . 6 10 Cannons 6 | . . 6 AOE 4 | . . 4 Classes Destroyed 11 | 2 3 6 Worker 5 | . 1 4 Builder 1 | . . 1 Tunneler 4 | 1 . 3 Recycler 4 | 1 2 1 Mechanic 1 | . . 1 Operator 2 | . . 2 Watcher 4 | . 2 2 Grunt 27 | . 6 21 Brawler 1 | . . 1 Duelist 1 | . . 1 Sentry 5 | . . 5 Best Kill Streak 6 | 2 5 6 Combat Bots Only 4 | . 3 4 Max Kills in Single Turn 2 | 1 1 2 Gunslinging . | . . . Exploded 2 | . . 2 Melee 1 | . . 1 Uniques/NPCs Destroyed . | . . . Combat | -11 -10 -9 -------- Run | Yrd Mat Mat Hostile Shots Fired 259 | . 52 207 Missed 78 | . 16 62 Damage Taken 2366 | . 499 1867 Core 502 | . 100 402 Absorbed by Shields 121 | . . 121 Core Remaining (%) 80 | 100 60 . Volleys Fired 148 | 5 47 96 Largest 2 | 2 2 2 Hottest 130 | 60 130 105 Shots Fired 276 | 10 89 177 Gun 239 | 10 89 140 Cannon 35 | . . 35 Launcher 2 | . . 2 Special . | . . . Kinetic 88 | 5 31 52 Thermal 178 | 4 58 116 Explosive 2 | . . 2 Electromagnetic 8 | 1 . 7 Robot Hit Streak 21 | 8 14 21 Robot Miss Streak 5 | 2 5 5 Penetration Max . | . . . Secondary Targets 6 | . 4 2 Max Gunslinging Chain 1 | . 1 1 Shots Hit Robots 208 | 8 54 146 Core Hits 85 | 4 26 55 Critical Kills 1 | . . 1 Critical Parts Destroyed 6 | . . 6 Critical Strikes 13 | . 1 12 Burn 3 | . 1 2 Blast 3 | . . 3 Smash 7 | . . 7 Melee Attacks 53 | . . 53 Impact 53 | . . 53 Slashing . | . . . Piercing . | . . . Sneak Attacks 2 | . . 2 Combat Hostiles . | . . . Follow-up Attacks 8 | . . 8 Damage Inflicted 3614 | 77 623 2914 Guns 1788 | 77 623 1088 Cannons 453 | . . 453 Explosions 364 | . . 364 Melee 1009 | . . 1009 Ramming . | . . . Kinetic 703 | 32 134 537 Thermal 1526 | 33 489 1004 Explosive 248 | . . 248 Electromagnetic 128 | 12 . 116 Impact 1009 | . . 1009 Slashing . | . . . Piercing . | . . . Highest Corruption 2 | . . 2 Average Corruption 2 | . . 2 Corruption Purged . | . . . Corruption Blocked . | . . . Effects 6 | . . 6 Message Errors 2 | . . 2 Matter Fused 1 | . . 1 Energy Discharges 2 | . . 2 Misfires 1 | . . 1 Overload Shots . | . . . Overflow Damage 225 | . . 225 Projectiles 5 | . . 5 Explosions 10 | . . 10 Melee 210 | . . 210 Knockbacks 8 | . . 8 Impact 5 | . . 5 Kinetic 3 | . . 3 Secondary . | . . . Self-Inflicted Damage 36 | . . 36 Shots 2 | . . 2 Rammed . | . . . Targets Rammed . | . . . Kicked . | . . . Crushed . | . . . Highest Temperature 505 | 20 505 24 Average Temperature 119 | 15 128 16 Received Heat Transfer 1160 | . 288 872 Effects 8 | . 8 . Shutdowns 1 | . 1 . Energy Bleed 2 | . 2 . Damage (minor) 1 | . 1 . Damage (major) 4 | . 4 . Siege Activations . | . . . Robots Corrupted 4 | . . 4 Combat Hostiles 2 | . . 2 Parts Fried 8 | . . 8 Impact Corruptions 10 | . . 10 Robots Melted 1 | . . 1 Combat Hostiles 1 | . . 1 Parts Melted 3 | . . 3 Heat Transferred 3751 | 75 1251 2425 Parts Sabotaged . | . . . Parts Stolen . | . . . Parts Stripped . | . . . Power Chain Reactions 3 | . . 3 Alert | -11 -10 -9 ------- Run | Yrd Mat Mat Peak Influence 488 | 10 184 488 Initial 6 | . 6 . Average 205 | 3 113 252 Maximum Alert Level 2 | . . 2 Low Security (%) 57 | 100 100 39 Level 1 29 | . . 41 Level 2 13 | . . 18 Level 3 . | . . . Level 4 . | . . . Level 5 . | . . . High Security . | . . . Max Security . | . . . Squads Dispatched 5 | . . 5 Investigation 3 | . . 3 Extermination . | . . . Reinforcement 2 | . . 2 Assault . | . . . Garrison . | . . . Intercept . | . . . Searches Triggered . | . . . Construction Impeded . | . . . Haulers Reinforced . | . . . Active Scanning Responses . | . . . Cargo Convoy Interrupts . | . . . Stealth | -11 -10 -9 --------- Run | Yrd Mat Mat Distress Signals 2 | . 2 . Communications Jammed . | . . . Distress Signals . | . . . Times Spotted 54 | . 11 43 Peak Tracking Total 6 | . 6 6 Tactical Retreats 2 | . . 2 Traps | -11 -10 -9 ------- Run | Yrd Mat Mat Traps Triggered 3 | . . 3 Indirectly . | . . . Trap Hack Attempts . | . . . Triggered . | . . . Disarmed . | . . . Reprogrammed . | . . . Reused . | . . . Traps Extracted . | . . . Installed . | . . . Triggered . | . . . Machines | -11 -10 -9 ---------- Run | Yrd Mat Mat Machines Disabled 1 | . . 1 Max in Single Turn 1 | . . 1 Machines Repaired . | . . . Machines Dismantled . | . . . Machines Sabotaged . | . . . Overloaded Fab Kills . | . . . Hacking | -11 -10 -9 --------- Run | Yrd Mat Mat Machines Accessed 13 | . 5 8 Terminals 11 | . 4 7 Fabricators . | . . . Repair Stations . | . . . Recycling Units 1 | . 1 . Scanalyzers 1 | . . 1 Garrison Access . | . . . Total Hacks 50 | . 14 36 Successful 34 | . 9 25 Failed 16 | . 5 11 Catastrophic 1 | . . 1 Database Lockouts . | . . . Manual 32 | . 10 22 Terminals 34 | . 13 21 Fabricators . | . . . Repair Stations . | . . . Recycling Units 1 | . 1 . Scanalyzers 15 | . . 15 Garrison Access . | . . . Terminal Hacks 9 | . 4 5 Robot Analysis 3 | . 1 2 Prototype ID Bank 1 | . 1 . Terminal Index 1 | . . 1 Unreport Threat 1 | . . 1 Hauler Manifests 1 | . 1 . Zone Layout 2 | . 1 1 Fabricator Hacks . | . . . Repair Station Hacks . | . . . Recycling Unit Hacks 1 | . 1 . Report Inventory 1 | . 1 . Scanalyzer 12 | . . 12 Insert Component 5 | . . 5 Analyze 7 | . . 7 Garrison Access Hacks . | . . . Unauthorized Hacks 12 | . 4 8 Terminals 11 | . 4 7 Track 1 | . 1 . Botnet 10 | . 3 7 Fabricators . | . . . Repair Stations . | . . . Recycling Units . | . . . Scanalyzers 1 | . . 1 Extract 1 | . . 1 Garrison Access . | . . . Data Cores Recovered . | . . . Used . | . . . Hacking Detections 10 | . 3 7 Full Trace Events 1 | . . 1 Feedback Events . | . . . Feedback Blocked . | . . . Robot Schematics Acquired . | . . . Robots Built . | . . . Authchips . | . . . Time . | . . . Total Robot Build Rating . | . . . Part Schematics Acquired 14 | . . 14 Parts Built . | . . . Authchips . | . . . Time . | . . . Total Part Build Rating . | . . . Parts Repaired . | . . . Time . | . . . Parts Recycled . | . . . Recycled Matter . | . . . Retrieved Matter . | . . . Retrieved Components . | . . . Parts Scanalyzed 5 | . . 5 Part Schematics Acquired 5 | . . 5 Parts Damaged . | . . . Bothacking | -11 -10 -9 ------------ Run | Yrd Mat Mat Used RIF Installer . | . . . Robots Hacked . | . . . Non-combat . | . . . Combat . | . . . Robot Hacks Applied . | . . . Relay Couplers Released . | . . . Fabnet Peak Effective % . | . . . Robots Rewired . | . . . Allies Hacked . | . . . Hacks Repelled . | . . . Allies | -11 -10 -9 -------- Run | Yrd Mat Mat Total Allies . | . . . Largest Group . | . . . Highest-Rated Group . | . . . Highest-Rated Ally . | . . . Total Orders . | . . . Ally Attacks . | . . . Total Damage . | . . . Kills . | . . . Allies Corrupted . | . . . Allies Melted . | . . . Intel | -11 -10 -9 ------- Run | Yrd Mat Mat Robot Analysis Total 3 | . 1 2 Derelict Logs Recovered . | . . . Drone Launches . | . . . Drone Recoveries . | . . . Exploration | -11 -10 -9 ------------- Run | Yrd Mat Mat Turns Passed 1731 | 89 424 1218 Spaces Moved 861 | 49 269 543 Core 13 | 13 . . Treads 12 | 12 . . Legs 32 | . . 32 Wheels 804 | 24 269 511 Hover . | . . . Flight . | . . . Fastest Speed 50 | 50 80 90 Average Speed 113 | 98 89 126 Slowest Speed 330 | 160 95 330 Overloaded Moves . | . . . Propulsion Burnouts . | . . . Robots Hopped . | . . . Cave-ins Triggered . | . . . Exploration Rate (%) 36 | 5 52 51 Regions Visited 2 Branch Regions . Pre-discovered Areas . | . . . Known Exits Taken . | . . . Unknown Exits Taken 2 | 1 1 . Scrap Searched . | . . . Spaces Dug 2 | . . 2 Terrain Destroyed 16 | . . 16 Melee 2 | . . 2 Projectile . | . . . AOE 14 | . . 14 Terrain Rammed . | . . . Walls Destroyed . | . . . Machines Disabled . | . . . Actions | -11 -10 -9 --------- Run | Yrd Mat Mat Total 1277 | 76 375 826 Wait 69 | . 21 48 Move 859 | 48 268 543 Hop . | . . . Pick Up 56 | 11 9 36 Fast Attach 15 | 5 6 4 Attach 20 | 2 2 16 Detach 1 | . 1 . Swap 25 | 4 6 15 Drop 40 | 1 15 24 Fire 148 | 5 47 96 Melee 44 | . . 44 Ram . | . . . Kick . | . . . Crush . | . . . Escape Stasis . | . . . Rewire . | . . . Trap . | . . . Miscellaneous . | . . . Route ------- -11/Scrapyard -10/Materials (discovered 2 exits: *Mat / [*Min]) -9/Materials (discovered 1 exit: [*Min]) History --------- Turn | Location | Event 32 | -11/Scrapyard | Discovered new exit (range 14) 90 | -11/Scrapyard | Entered Materials 166 | -10/Materials | Discovered new exit (range 6) 408 | -10/Materials | Lost 3 parts (1p1n1u) 480 | -10/Materials | Discovered new exit (range 16) 514 | -10/Materials | Entered another Materials area 514 | -9/Materials | Evolved 2 slots: Utility x2 841 | -9/Materials | Build established: Mutant 988 | -9/Materials | Discovered new exit (range 16) 1350 | -9/Materials | Build established: Scavenger-Mutant 1393 | -9/Materials | Core integrity fell below 50% 1449 | -9/Materials | Lost 6 parts (1p1n2u2w) 1719 | -9/Materials | Core integrity fell below 20% 1732 | -9/Materials | Destroyed by Y-45 Defender with Heavy Assault Rifle Last Messages --------------- 01635_ Heat Sink fried. 01635_ G-34 Mercenary destroyed. 01641_ Acquired 25 matter. 01662_ System corrupted: FCS attempts to trigger Hvy. Assault Rifle. 01662_ System corrupted: Hvy. Assault Rifle misfires. 01668_ T-07 Excavator destroyed. 01676_ Acquired Lgt. Ion Engine. 01677_ Acquired 15 matter. 01683_ System corrupted: Energy discharge (-82). 01684_ Shield Generator destroyed. 01709_ Atomic Centrifuge disabled. 01712_ Wheel destroyed. 01712_ Sensor Array destroyed. 01718_ Critical hit (Burn: +37). 01724_ Ion Engine destroyed. 01726_ K-01 Serf collects debris. 01730_ Atomic Centrifuge disabled. 01730_ K-01 Serf collects debris. Map ----- +----------------------------------------------------+ | | | | | | | | | | | | | | | | | | | ??????????????????????????????? | | ?????########?????????????????? | | ?????# #?????????????????? | | ?????# """ #?????????????????? | | ?????# """ #####?????????????? | | ?????# """ + #?????????????? | | ?????# ### #?????????????? | | ?????# ### ###???????????? | | ?????#####+## #???????????? | | ????#### ########????? | | ????# %= #????# | | ????# % ###### #???? | | #####+## |## #????# ##### | | # # %########????# | | # """ # #???????????# #### | | # """ # #???????#####+#### | | # "" @# #???????# # | | # Y # #???????# """"" # | | # "" Y# #???????# """"" # | | #[ """ # #???????# """""% #% | | # """ # #???????# =%+== | | # # #???????# """""=%#[% | | # """ # #???????# """"" # | | # """ # #???????# """"" # | | # """k/ +???????? # | | # ? # #????????######### | | ####?### #????????????????# | | ??????? ????????????????# | | ??????? ?????????????????# | | ??????? ?????????????????# | | ???????? ?????????????????### | | ??????????????????????????????? | | ??????????????????????????????? | | ??????????????????????????????? | | ??????????????????????????????? | | ??????????????????????????????? | | ??????????????????????????????? | | ??????????????????????????????? | | ??????????????????????????????? | | ??????????????????????????????? | | ??????????????????????????????? | +----------------------------------------------------+ Best States ------------- Heat Dissipation 50 Energy Generation 14 Energy Capacity 250 Matter Stores 300 Matter Capacity 300 Sight Range 16 Robot Scan Range 14 Terrain Scan Density 10 Armor Coverage 150 Evasion (%) 50 Recoil Reduction 2 Item Schematics ----------------- Imp. Targeting Computer | -9/Materials | Scanalyzed Mni. Grenade Launcher | -9/Materials | Scanalyzed Cooling System | -9/Materials | Scanalyzed Med. Battery | -9/Materials | Scanalyzed Hacking Suite | -9/Materials | Scanalyzed Imp. Assault Rifle | -9/Materials | Extracted Huge Storage Unit | -9/Materials | Extracted Com. Wheel | -9/Materials | Extracted Power Shielding | -9/Materials | Extracted Hvy. Assault Rifle | -9/Materials | Extracted Hammer | -9/Materials | Extracted Field Recycling Unit | -9/Materials | Extracted Adv. Beam Cannon | -9/Materials | Extracted EM Shotgun | -9/Materials | Extracted Robot Schematics ------------------ None Fabricated ------------ Nothing Alien Tech Used ----------------- None Achievements -------------- None Challenges ------------ None Game ------ Seed DeliveryCloakingDrivehammer Manual? 0 Play Time 00:47:16 Cumulative 276.5 hours Start 2024.10.06 @ 10:03:54 End 2024.10.06 @ 10:51:19 Sessions 1 Manual Loads 0 Difficulty Rogue Special Mode None Game No. 122 Rogue 119 Adventurer 3 Explorer 0 Win Type - Total 0 Types 0/0/0/0/0/0/0/0/0 Lore% 22 Gallery% 51 Achievement% 37 Wizard Run 0 Options --------- Layout 2 ASCII 0 Keyboard 0 Movement Mouse Keybinds 0 Fullscreen 2 Font 24/Smallcaps Map View 50x44 Zoom Use 0% Tactical HUD 1 Map Filters NONE Filters NONE Steam 1 RUN: fb549d61-feca-42d4-b8de-f5b19f0968c6